fUSD/lending_fUSD_20260327
["ID","MTS","AMOUNT","RATE_DAILY","PERIOD"]
[418956016,1774651771795,-500.0,0.00013982,2]
[418956017,1774651771815,-151.0,0.00013982,2]
[418956018,1774651771835,-500.0,0.00013982,2]
[418956019,1774651771854,-151.0,0.00013982,2]
[418956020,1774651771874,-500.0,0.00013982,2]
[418956021,1774651771894,-151.0,0.00013982,2]
[418956022,1774651771914,-500.0,0.00013982,2]
[418956023,1774651771934,-151.0,0.00013982,2]
[418956024,1774651771954,-500.0,0.00013982,2]
[418956025,1774651771974,-2913.21120474,0.00013982,2]
[418956026,1774651771996,-151.0,0.00013987,2]
[418956027,1774651772016,-11363.37407508,0.0001399,2]
[418956028,1774651772039,-166.66,0.00014143,2]
[418956029,1774651772062,-1083.07621406,0.00014192,2]
[418956030,1774651772085,-500.0,0.00014318,2]
[418956031,1774651772106,-100.14815769,0.00014318,2]
[418956036,1774651831673,-200.0,0.00014,2]
[418956037,1774651831684,-73.74184231,0.00014318,2]
[418956038,1774651831694,-130.56028769,0.00014341,2]
[418956039,1774651831707,-439.49971231,0.00014341,2]
[418956040,1774651831717,-166.66,0.00014435,2]
[418956041,1774651831726,-500.0,0.00014533,2]
[418956042,1774651831736,-166.66,0.00014727,2]
[418956043,1774651831745,-166.66,0.00014781,2]
[418956044,1774651831754,-233.0,0.00014809,2]
[418956045,1774651831763,-400.36207111,0.00014836,2]
[418956046,1774651831775,-665.72995843,0.00014836,2]
[418956047,1774651831804,-139.90797046,0.00014836,2]
[418956048,1774651831816,-169.9,0.00014993,2]
[418956049,1774651831825,-166.66,0.00015018,2]
[418956050,1774651831835,-255.0,0.00015099,2]
[418956051,1774651831844,-174.61919141,0.00015199,2]
[418956052,1774651831855,-518.42826154,0.00015199,2]
[418956053,1774651831866,-225.07943995,0.00015199,2]
[418956054,1774651831875,-300.0,0.000152,5]
[418956055,1774651831885,-50.67056005,0.0001521,2]
[418956077,1774651837634,-364.74863995,0.0001521,2]
[418956078,1774651837644,-179.5,0.00015237,2]
[418956079,1774651837653,-179.5,0.00015237,2]
[418956080,1774651837663,-179.5,0.00015237,2]
[418956082,1774651837674,-179.5,0.00015237,2]
[418956083,1774651837684,-5000.0,0.00015237,2]
[418956084,1774651837694,-600.0,0.000153,5]
[418956085,1774651837704,-166.66,0.0001531,2]
[418956086,1774651837713,-594.0,0.00015317,2]
[418956087,1774651837722,-11766.0134,0.00015318,2]
[418956088,1774651837732,-16361.50656498,0.00015345,2]
[418956089,1774651837741,-297.22989029,0.000154,2]
[418956090,1774651837751,-900.0,0.000154,5]
[418956091,1774651837760,-16361.50656496,0.00015407,2]
[418956092,1774651837769,-157.1,0.00015408,3]
[418956093,1774651837779,-500.0,0.00015417,2]
[418956094,1774651837788,-500.0,0.00015417,2]
[418956095,1774651837797,-576.90800264,0.00015417,2]
[418956096,1774651837807,-500.0,0.00015417,2]
[418956097,1774651837816,-500.0,0.00015417,2]
[418956098,1774651837826,-500.0,0.00015417,2]
[418956099,1774651837835,-500.0,0.00015417,2]
[418956100,1774651837844,-500.0,0.00015417,2]
[418956101,1774651837853,-500.0,0.00015417,2]
[418956102,1774651837863,-500.0,0.00015417,2]
[418956103,1774651837872,-500.0,0.00015417,2]
[418956104,1774651837881,-500.0,0.00015417,2]
[418956105,1774651837891,-500.0,0.00015417,2]
[418956106,1774651837901,-500.0,0.00015417,2]
[418956107,1774651837910,-500.0,0.00015417,2]
[418956108,1774651837920,-500.0,0.00015417,2]
[418956109,1774651837929,-500.0,0.00015417,2]
[418956110,1774651837939,-500.0,0.00015417,2]
[418956111,1774651837948,-500.0,0.00015417,2]
[418956112,1774651837959,-500.0,0.00015417,2]
[418956113,1774651837968,-500.0,0.00015417,2]
[418956114,1774651837977,-298.32945828,0.00015417,2]
[418956115,1774651837987,-500.0,0.00015417,2]
[418956117,1774651837997,-500.0,0.00015417,2]
[418956119,1774651838006,-500.0,0.00015417,2]
[418956121,1774651838015,-500.0,0.00015417,2]
[418956123,1774651838024,-500.0,0.00015417,2]
[418956125,1774651838033,-500.0,0.00015417,2]
[418956127,1774651838042,-500.0,0.00015417,2]
[418956129,1774651838051,-500.0,0.00015417,2]
[418956131,1774651838061,-500.0,0.00015417,2]
[418956133,1774651838070,-500.0,0.00015417,2]
[418956135,1774651838079,-500.0,0.00015417,2]
[418956137,1774651838088,-500.0,0.00015417,2]
[418956139,1774651838097,-500.0,0.00015417,2]
[418956141,1774651838107,-500.0,0.00015417,2]
[418956143,1774651838116,-500.0,0.00015417,2]
[418956145,1774651838125,-500.0,0.00015417,2]
[418956147,1774651838134,-500.0,0.00015417,2]
[418956148,1774651838144,-500.0,0.00015417,2]
[418956150,1774651838154,-500.0,0.00015417,2]
[418956153,1774651838163,-500.0,0.00015417,2]
[418956155,1774651838173,-500.0,0.00015417,2]
[418956157,1774651838182,-500.0,0.00015417,2]
[418956159,1774651838192,-500.0,0.00015417,2]
[418956161,1774651838201,-500.0,0.00015417,2]
[418956163,1774651838210,-500.0,0.00015417,2]
[418956165,1774651838219,-500.0,0.00015417,2]
[418956167,1774651838228,-500.0,0.00015417,2]
[418956169,1774651838240,-500.0,0.00015417,2]
[418956171,1774651838249,-500.0,0.00015417,2]
[418956173,1774651838258,-500.0,0.00015417,2]
[418956175,1774651838267,-500.0,0.00015417,2]
[418956177,1774651838276,-500.0,0.00015417,2]
[418956179,1774651838285,-362.14612648,0.00015417,2]
[418956181,1774651838294,-500.0,0.00015417,2]
[418956183,1774651838303,-500.0,0.00015417,2]
[418956185,1774651838313,-500.0,0.00015417,2]
[418956187,1774651838322,-500.0,0.00015417,2]
[418956189,1774651838331,-250.0,0.00015417,2]
[418956191,1774651838340,-145479.57027221,0.00015418,2]
[418956193,1774651838356,-10114.36054432,0.00015418,2]
[418956196,1774651838367,-819.54369408,0.00015418,2]
[418956198,1774651838378,-1306.8598632,0.00015418,2]
[418956200,1774651838389,-254.18043806,0.00015418,2]
[418956203,1774651838408,-863.73012948,0.00015418,2]
[418956205,1774651838420,-1583.0792833,0.00015418,2]
[418956208,1774651838431,-505.0,0.00015418,2]
[418956267,1774651840357,-672.66563398,0.0001534,2]
[418956268,1774651840419,-2529.30522254,0.0001534,2]
[418956269,1774651840431,-680.1827409,0.0001534,2]
[418956270,1774651840442,-450.05404346,0.00015418,2]
[418956271,1774651840454,-2687.58630183,0.00015418,2]
[418956272,1774651840481,-146812.57826926,0.00015418,2]
[418956273,1774651840493,-108324.2055608,0.00015418,2]
[418956274,1774651840502,-402.61,0.0001544,2]
[418956275,1774651840511,-500.0,0.00015445,2]
[418956276,1774651840520,-200.0,0.00015445,2]
[418956277,1774651840529,-150.0,0.00015452,2]
[418956278,1774651840538,-150.0,0.00015452,2]
[418956279,1774651840547,-150.0,0.00015452,2]
[418956280,1774651840556,-195.44774764,0.00015452,2]
[418956281,1774651840566,-5316.4358,0.0001546,2]
[418956282,1774651840576,-2870.2126,0.0001546,2]
[418956283,1774651840586,-34552.48683629,0.0001546,2]
[418956284,1774651840596,-16361.50656496,0.00015468,2]
[418956285,1774651840606,-2432.6427,0.0001547,2]
[418956286,1774651840617,-1000.0,0.0001547,2]
[418956287,1774651840626,-2500.0,0.0001547,2]
[418956288,1774651840635,-160.27697392,0.00015473,2]
[418956289,1774651840644,-500.0,0.00015473,2]
[418956290,1774651840654,-500.0,0.00015473,2]
[418956291,1774651840663,-160.27932398,0.00015473,2]
[418956292,1774651840673,-500.0,0.00015473,2]
[418956293,1774651840683,-150.0,0.000155,2]
[418956294,1774651840693,-1200.0,0.000155,5]
[418956295,1774651840702,-494.1928623,0.00015529,2]
[418956296,1774651840712,-500.0,0.00015529,2]
[418956297,1774651840722,-195.86841418,0.00015529,2]
[418956298,1774651840733,-16361.50656496,0.0001553,2]
[418956299,1774651840742,-680.49,0.00015569,2]
[418956300,1774651840752,-500.0,0.0001557,2]
[418956301,1774651840761,-3844.4003,0.00015578,2]
[418956302,1774651840770,-5000.0,0.00015578,2]
[418956303,1774651840780,-16361.50656496,0.00015592,2]
[418956304,1774651840790,-3451.28,0.000156,2]
[418956305,1774651840800,-3006.0,0.000156,2]
[418956306,1774651840810,-1874.78,0.000156,2]
[418956307,1774651840820,-1500.0,0.000156,5]
[418956308,1774651840829,-2111.30140865,0.00015652,2]
[418956309,1774651840839,-16361.50656496,0.00015653,2]
[418956310,1774651840848,-500.52239873,0.00015673,2]
[418956311,1774651840858,-500.0,0.00015673,2]
[418956312,1774651840867,-500.0,0.00015673,2]
[418956313,1774651840876,-501.20618875,0.00015673,2]
[418956314,1774651840886,-500.74550538,0.00015673,2]
[418956316,1774651840895,-611.41964849,0.00015673,2]
[418956318,1774651840904,-500.0,0.00015673,2]
[418956320,1774651840913,-500.0,0.00015673,2]
[418956322,1774651840922,-500.0,0.00015673,2]
[418956324,1774651840931,-500.0,0.00015673,2]
[418956326,1774651840940,-500.0,0.00015673,2]
[418956328,1774651840950,-500.0,0.00015673,2]
[418956330,1774651840958,-500.0,0.00015673,2]
[418956331,1774651840968,-500.0,0.00015673,2]
[418956332,1774651840977,-500.80510622,0.00015673,2]
[418956333,1774651840985,-500.0,0.00015673,2]
[418956334,1774651840994,-500.0,0.00015673,2]
[418956335,1774651841004,-500.0,0.00015673,2]
[418956336,1774651841014,-151.0,0.00015675,2]
[418956337,1774651841024,-768.654498,0.0001568,2]
[418956338,1774651841035,-4177.416566,0.0001568,2]
[418956339,1774651841044,-4716.097709,0.0001568,2]
[418956340,1774651841054,-300.0,0.000157,5]
[418956341,1774651841063,-1000.0,0.00015708,2]
[418956342,1774651841073,-16361.50656496,0.00015715,2]
[418956343,1774651841083,-621.0,0.00015727,2]
[418956344,1774651841092,-1262.0,0.00015727,2]
[418956345,1774651841101,-150.336,0.00015727,2]
[418956346,1774651841110,-1216.0,0.00015727,2]
[418956347,1774651841119,-924.0,0.00015727,2]
[418956348,1774651841128,-150.0,0.00015727,2]
[418956349,1774651841137,-150.0,0.00015727,2]
[418956350,1774651841146,-6011.0,0.00015727,2]
[418956351,1774651841156,-183.53,0.00015742,2]
[418956352,1774651841166,-181.08010149,0.00015747,2]
[418956353,1774651841175,-743.50770149,0.00015747,2]
[418956354,1774651841185,-173.89,0.00015749,2]
[418956355,1774651841194,-2189.0,0.00015757,5]
[418956356,1774651841204,-16361.50656496,0.00015777,2]
[418956357,1774651841213,-300.0,0.000158,5]
[418956358,1774651841222,-16361.50656496,0.00015838,2]
[418956359,1774651841233,-680.49,0.00015843,2]
[418956360,1774651841242,-428.0,0.00015863,2]
[418956361,1774651841251,-612.193,0.00015875,2]
[418956362,1774651841261,-176.12906,0.00015896,7]
[418956363,1774651841270,-6334.263831,0.00015896,2]
[418956364,1774651841279,-151.0,0.00015897,2]
[418956365,1774651841288,-16361.50656496,0.000159,2]
[418956366,1774651841297,-300.0,0.000159,5]
[418956367,1774651841307,-409.80615462,0.000159,2]
[418956368,1774651841316,-200.0,0.000159,2]
[418956369,1774651841325,-1451.95389476,0.000159,2]
[418956370,1774651841335,-2861.83530056,0.000159,2]
[418956371,1774651841344,-176.74033369,0.000159,2]
[418956372,1774651841353,-308.72588896,0.000159,2]
[418956373,1774651841363,-405.93830425,0.00015973,2]
[418956374,1774651841384,-94.06169575,0.00015973,2]
[418956375,1774651841394,-169.74230425,0.00015973,2]
[418956403,1774651843161,-330.25769575,0.00015973,2]
[418956404,1774651843172,-500.25354559,0.00015973,2]
[418956405,1774651843181,-626.24588334,0.00015973,2]
[418956406,1774651843191,-1.91374732,0.00015973,2]
[418956407,1774651843221,-306.82541468,0.00015973,2]
[418956408,1774651843233,-191.260838,0.00015973,2]
[418956409,1774651843243,-500.0,0.00015973,2]
[418956410,1774651843253,-500.0,0.00015973,2]
[418956411,1774651843262,-500.0,0.00015973,2]
[418956412,1774651843272,-500.0,0.00015973,2]
[418956413,1774651843281,-500.0,0.00015973,2]
[418956414,1774651843291,-303.34766094,0.00015973,2]
[418956415,1774651843303,-196.65233906,0.00015973,2]
[418956416,1774651843313,-500.0,0.00015973,2]
[418956417,1774651843323,-500.0,0.00015973,2]
[418956418,1774651843332,-976.11355708,0.0001599,2]
[418956419,1774651843342,-90.8748906,0.0001599,2]
[418956493,1774651845872,-2435.31727346,0.00015402,2]
[418956601,1774651923410,250.0,0.00013,2]
[418956614,1774652836113,-167.0,0.00013,3]
[418956615,1774652836135,-150.0,0.00013,2]
[418956616,1774652836157,-150.0,0.00013,7]
[418956617,1774652836178,-59.12203802,0.00013,2]
[418956621,1774652956089,-224.0,0.00012999,2]
[418956622,1774652956110,-167.0,0.00013,3]
[418956623,1774652956130,-90.87796198,0.00013,2]
[418956624,1774652956152,-250.0,0.00013,2]
[418956639,1774652974090,-273.72,0.00013667,2]
[418956640,1774652974111,-150.0,0.00013699,2]
[418956641,1774652974130,-3598.69,0.00013699,2]
[418956642,1774652974151,-150.0,0.00013741,2]
[418956643,1774652974172,-151.0,0.00013772,2]
[418956644,1774652974193,-292.37,0.00013889,2]
[418956645,1774652974213,-150.0,0.0001396,2]
[418956647,1774652974235,-300.0,0.00014029,2]
[418956648,1774652974257,-1200.0,0.00014029,2]
[418956649,1774652974279,-300.0,0.00014029,2]
[418956650,1774652974300,-4354.83,0.0001403,2]
[418956651,1774652974323,-150.0,0.0001403,2]
[418956652,1774652974345,-150.0,0.00014129,2]
[418956653,1774652974366,-7426.66,0.00014131,2]
[418956654,1774652974388,-203.0,0.00014236,2]
[418956655,1774652974408,-189.44762194,0.00014236,2]
[418956656,1774652974429,-3240.0,0.00014246,2]
[418956657,1774652974450,-150.0,0.00014246,2]
[418956658,1774652974472,-150.0,0.00014277,2]
[418956659,1774652974494,-858.0,0.00014297,2]
[418956660,1774652974515,-250.0,0.000143,2]
[418956661,1774652974535,-2829.88,0.00014349,2]
[418956662,1774652974556,-94.53365806,0.00014349,2]
[418956664,1774652979640,309.61507023,0.000125,2]
[418956705,1774653031839,-55.46634194,0.00014349,2]
[418956706,1774653031852,-3598.69,0.00014384,2]
[418956707,1774653031864,-526.68,0.00014409,2]
[418956708,1774653031877,-900.0,0.000146,5]
[418956709,1774653031889,-150.0,0.00014607,2]
[418956710,1774653031900,-300.0,0.00014607,2]
[418956711,1774653031911,-1200.0,0.00014607,2]
[418956712,1774653031922,-150.0,0.00014608,2]
[418956713,1774653031933,-485.14192718,0.00014608,2]
[418956714,1774653031944,-508.76052425,0.00014608,2]
[418956715,1774653031955,-494.1928623,0.00014608,2]
[418956716,1774653031966,-500.0,0.00014608,2]
[418956717,1774653031977,-500.0,0.00014608,2]
[418956718,1774653031989,-516.43812279,0.00014608,2]
[418956719,1774653032000,-422.03660648,0.00014608,2]
[418956720,1774653032011,-500.0,0.00014608,2]
[418956721,1774653032022,-500.0,0.00014608,2]
[418956722,1774653032033,-500.0,0.00014608,2]
[418956723,1774653032043,-187.10788993,0.00014608,2]
[418956724,1774653032054,-22943.44742459,0.00014609,2]
[418956725,1774653032078,-1085.39999998,0.00014609,2]
[418956729,1774653037928,-656176.37517543,0.00014609,2]
[418956730,1774653037938,-500.0,0.00014673,2]
[418956731,1774653037947,-500.0,0.00014673,2]
[418956732,1774653037957,-500.0,0.00014673,2]
[418956733,1774653037967,-500.0,0.00014673,2]
[418956734,1774653037977,-500.0,0.00014673,2]
[418956735,1774653037988,-500.0,0.00014673,2]
[418956736,1774653037997,-500.0,0.00014673,2]
[418956737,1774653038007,-500.0,0.00014673,2]
[418956738,1774653038016,-1900.0,0.000147,5]
[418956739,1774653038026,-2432.6427,0.00014709,2]
[418956740,1774653038035,-2900.0,0.000148,5]
[418956741,1774653038045,-150.0,0.000149,2]
[418956742,1774653038054,-3800.0,0.000149,5]
[418956743,1774653038063,-200.0,0.0001497,2]
[418956744,1774653038072,-500.0,0.0001497,2]
[418956745,1774653038081,-3864.41693471,0.00014978,2]
[418956746,1774653038090,-1241.67397506,0.00014978,2]
[418956747,1774653038099,-26797.26570733,0.00014989,2]
[418956748,1774653038108,-600.0,0.00015024,2]
[418956749,1774653038117,-3598.69,0.00015068,2]
[418956750,1774653038127,-1932.3914,0.00015096,2]
[418956751,1774653038136,-1392.5373118,0.000151,2]
[418956752,1774653038144,-755.31200328,0.000151,2]
[418956753,1774653038154,-2870.2126,0.00015116,2]
[418956754,1774653038164,-563.0539,0.00015116,2]
[418956755,1774653038173,-5316.4358,0.00015116,2]
[418956756,1774653038182,-16162.63602925,0.00015125,2]
[418956758,1774653038191,-5000.0,0.00015126,2]
[418956760,1774653038200,-2500.0,0.00015126,2]
[418956762,1774653038209,-3586.19405456,0.00015126,2]
[418956764,1774653038219,-1135.79231898,0.00015153,2]
[418956766,1774653038228,-7909.42812096,0.00015198,2]
[418956768,1774653038237,-174.61919141,0.00015198,2]
[418956770,1774653038247,-743.50770149,0.00015198,2]
[418956772,1774653038255,-500.0,0.00015198,2]
[418956774,1774653038265,-351.96292342,0.000152,2]
[418956776,1774653038275,-200.0,0.000152,2]
[418956778,1774653038284,-4986.26933271,0.00015211,2]
[418956782,1774653038307,-783.09266786,0.00015211,2]
[418956784,1774653038322,-2918.56,0.00015211,2]
[418956787,1774653038334,-7474.71402865,0.00015211,2]
[418956789,1774653038343,-478.4774918,0.00015218,2]
[418956791,1774653038352,-536.16487377,0.00015221,2]
[418956793,1774653038362,-1000.0,0.00015221,2]
[418956795,1774653038373,-1000.0,0.00015221,2]
[418956797,1774653038383,-1000.0,0.00015221,2]
[418956799,1774653038392,-500.0,0.00015221,2]
[418956801,1774653038402,-503.75491987,0.00015221,2]
[418956803,1774653038411,-1000.0,0.00015221,2]
[418956805,1774653038421,-151.0,0.00015223,2]
[418956807,1774653038430,-151.0,0.00015223,2]
[418956809,1774653038439,-151.0,0.00015223,2]
[418956811,1774653038449,-500.0,0.00015225,2]
[418956813,1774653038458,-551.92950635,0.00015225,2]
[418956815,1774653038468,-713.24,0.00015225,2]
[418956817,1774653038478,-713.24,0.00015225,2]
[418956819,1774653038487,-713.24,0.00015225,2]
[418956821,1774653038496,-713.24,0.00015225,2]
[418956823,1774653038505,-713.24,0.00015225,2]
[418956825,1774653038514,-713.24,0.00015225,2]
[418956827,1774653038524,-713.24,0.00015225,2]
[418956829,1774653038533,-727.73,0.00015225,2]
[418956831,1774653038543,-727.73,0.00015225,2]
[418956833,1774653038551,-727.73,0.00015225,2]
[418956835,1774653038560,-727.73,0.00015225,2]
[418956837,1774653038570,-727.73,0.00015225,2]
[418956839,1774653038580,-727.73,0.00015225,2]
[418956841,1774653038589,-727.73,0.00015225,2]
[418956843,1774653038598,-500.0,0.00015225,2]
[418956845,1774653038609,-500.0,0.00015225,2]
[418956847,1774653038618,-500.0,0.00015225,2]
[418956849,1774653038627,-500.0,0.00015225,2]
[418956851,1774653038636,-500.0,0.00015225,2]
[418956853,1774653038645,-500.0,0.00015225,2]
[418956855,1774653038654,-500.0,0.00015225,2]
[418956857,1774653038663,-576.86,0.00015225,2]
[418956859,1774653038673,-576.86,0.00015225,2]
[418956860,1774653038682,-576.86,0.00015225,2]
[418956863,1774653038691,-576.86,0.00015225,2]
[418956865,1774653038701,-576.86,0.00015225,2]
[418956867,1774653038710,-576.86,0.00015225,2]
[418956869,1774653038719,-576.86,0.00015225,2]
[418956870,1774653038728,-500.0,0.00015225,2]
[418956872,1774653038738,-500.0,0.00015225,2]
[418956874,1774653038747,-500.0,0.00015225,2]
[418956877,1774653038757,-500.0,0.00015225,2]
[418956879,1774653038766,-500.0,0.00015225,2]
[418956881,1774653038776,-500.0,0.00015225,2]
[418956883,1774653038785,-500.0,0.00015225,2]
[418956885,1774653038794,-500.0,0.00015225,2]
[418956887,1774653038804,-491.51644773,0.00015225,2]
[418956889,1774653038813,-1095.88,0.00015225,2]
[418956891,1774653038822,-1095.88,0.00015225,2]
[418956893,1774653038831,-1095.88,0.00015225,2]
[418956895,1774653038840,-1095.88,0.00015225,2]
[418956897,1774653038849,-1095.88,0.00015225,2]
[418956898,1774653038858,-1095.88,0.00015225,2]
[418956900,1774653038867,-1095.88,0.00015225,2]
[418956902,1774653038876,-500.0,0.00015225,2]
[418956905,1774653038885,-500.0,0.00015225,2]
[418956907,1774653038894,-500.0,0.00015225,2]
[418956909,1774653038904,-500.0,0.00015225,2]
[418956911,1774653038913,-500.0,0.00015225,2]
[418956913,1774653038922,-500.0,0.00015225,2]
[418956915,1774653038932,-500.0,0.00015225,2]
[418956917,1774653038941,-500.0,0.00015225,2]
[418956919,1774653038950,-500.0,0.00015225,2]
[418956921,1774653038960,-500.0,0.00015225,2]
[418956923,1774653038969,-500.0,0.00015225,2]
[418956924,1774653038977,-500.0,0.00015225,2]
[418956927,1774653038987,-500.0,0.00015225,2]
[418956929,1774653038996,-500.0,0.00015225,2]
[418956931,1774653039005,-553.10600438,0.00015225,2]
[418956933,1774653039014,-532.09816881,0.00015225,2]
[418956935,1774653039023,-500.0,0.00015225,2]
[418956937,1774653039032,-500.0,0.00015225,2]
[418956939,1774653039042,-500.0,0.00015225,2]
[418956941,1774653039051,-500.0,0.00015225,2]
[418956943,1774653039060,-500.0,0.00015225,2]
[418956944,1774653039069,-500.0,0.00015225,2]
[418956946,1774653039078,-566.97722897,0.00015225,2]
[418956948,1774653039087,-619.54,0.00015225,2]
[418956951,1774653039097,-619.54,0.00015225,2]
[418956953,1774653039106,-619.54,0.00015225,2]
[418956954,1774653039115,-619.54,0.00015225,2]
[418956956,1774653039124,-619.54,0.00015225,2]
[418956958,1774653039134,-619.54,0.00015225,2]
[418956960,1774653039143,-619.54,0.00015225,2]
[418956962,1774653039152,-500.0,0.00015225,2]
[418956963,1774653039161,-500.0,0.00015225,2]
[418956964,1774653039171,-500.0,0.00015225,2]
[418956965,1774653039180,-500.0,0.00015225,2]
[418956966,1774653039189,-500.0,0.00015225,2]
[418956967,1774653039198,-500.0,0.00015225,2]
[418956968,1774653039207,-500.0,0.00015225,2]
[418956969,1774653039216,-500.0,0.00015225,2]
[418956970,1774653039226,-500.0,0.00015225,2]
[418956971,1774653039236,-500.0,0.00015225,2]
[418956972,1774653039245,-500.0,0.00015225,2]
[418956973,1774653039254,-500.0,0.00015225,2]
[418956974,1774653039264,-500.0,0.00015225,2]
[418956975,1774653039273,-212.34445911,0.00015225,2]
[418956976,1774653039282,-500.0,0.00015225,2]
[418956977,1774653039293,-500.0,0.00015225,2]
[418956978,1774653039303,-500.0,0.00015225,2]
[418956979,1774653039312,-500.0,0.00015225,2]
[418956980,1774653039321,-500.0,0.00015225,2]
[418956981,1774653039330,-500.0,0.00015225,2]
[418956982,1774653039339,-500.0,0.00015225,2]
[418956983,1774653039348,-500.0,0.00015225,2]
[418956984,1774653039357,-500.0,0.00015225,2]
[418956985,1774653039366,-500.0,0.00015225,2]
[418956986,1774653039375,-500.0,0.00015225,2]
[418956987,1774653039385,-500.0,0.00015225,2]
[418956988,1774653039394,-500.0,0.00015225,2]
[418956989,1774653039403,-500.0,0.00015225,2]
[418956990,1774653039413,-500.0,0.00015225,2]
[418956991,1774653039422,-500.0,0.00015225,2]
[418956992,1774653039431,-522.48236244,0.00015225,2]
[418956993,1774653039440,-500.0,0.00015225,2]
[418956994,1774653039449,-500.0,0.00015225,2]
[418956995,1774653039459,-666.0,0.00015225,2]
[418956996,1774653039467,-666.0,0.00015225,2]
[418956997,1774653039477,-713.24,0.00015253,2]
[418956998,1774653039486,-727.73,0.00015253,2]
[418956999,1774653039495,-576.86,0.00015253,2]
[418957000,1774653039504,-500.0,0.00015253,2]
[418957001,1774653039513,-500.0,0.00015253,2]
[418957002,1774653039522,-500.0,0.00015273,2]
[418957003,1774653039531,-500.0,0.00015273,2]
[418957004,1774653039541,-500.0,0.00015273,2]
[418957005,1774653039550,-160.27697392,0.00015273,2]
[418957006,1774653039559,-163.59055269,0.00015273,2]
[418957007,1774653039568,-500.0,0.00015273,2]
[418957008,1774653039577,-160.27932398,0.00015273,2]
[418957009,1774653039586,-1451.95389476,0.00015273,2]
[418957010,1774653039595,-219.17615924,0.00015283,2]
[418957011,1774653039604,-1059.69462158,0.00015297,2]
[418957012,1774653039614,-15053.02968663,0.00015297,2]
[418957013,1774653039627,-985.46956619,0.00015297,2]
[418957014,1774653039639,-124.1367764,0.00015297,2]
[418957015,1774653039649,-1874.78,0.000153,2]
[418957016,1774653039659,-3451.28,0.000153,2]
[418957017,1774653039678,-3006.0,0.000153,2]
[418957018,1774653039689,-1517.64,0.000153,2]
[418957019,1774653039699,-4800.30941076,0.000153,2]
[418957020,1774653039708,-151.0,0.00015304,2]
[418957021,1774653039718,-151.0,0.00015304,2]
[418957022,1774653039727,-666.0,0.00015306,2]
[418957023,1774653039738,-742.99189388,0.00015306,2]
[418957024,1774653039747,-713.24,0.00015306,2]
[418957025,1774653039757,-713.24,0.00015306,2]
[418957026,1774653039766,-713.24,0.00015306,2]
[418957027,1774653039776,-713.24,0.00015306,2]
[418957028,1774653039786,-713.24,0.00015306,2]
[418957029,1774653039797,-713.24,0.00015306,2]
[418957030,1774653039807,-727.73,0.00015306,2]
[418957031,1774653039817,-727.73,0.00015306,2]
[418957032,1774653039826,-727.73,0.00015306,2]
[418957033,1774653039837,-727.73,0.00015306,2]
[418957034,1774653039846,-727.73,0.00015306,2]
[418957035,1774653039856,-727.73,0.00015306,2]
[418957036,1774653039865,-500.0,0.00015306,2]
[418957037,1774653039874,-500.0,0.00015306,2]
[418957038,1774653039884,-500.0,0.00015306,2]
[418957039,1774653039893,-500.0,0.00015306,2]
[418957040,1774653039903,-500.0,0.00015306,2]